Cogmind - Beta 12 X2 @@@ ROGUE MODE // 2022.09.05 @ 17:04:55 Player: Decinym Result: Self-destructed Performance ------------- Evolutions (7) 3500 Regions Visited (24) 4800 Robots Destroyed (271) 1355 Value Destroyed (11228) 11228 Prototype IDs (72) 1440 Alien Tech Used (1) 200 Bonus (4588) 4588 TOTAL SCORE: 27111 Bonus ------- High Alert Combat Kills 1262 Follower Combat Kills 1583 Entered DSFs 500 Aligned with FarCom 300 Met Zhirov 300 Met Warlord at Base 500 MAIN.C Attacked Warlord 500 Warlord Defense Kills 928 Friendly Fire -1285 Cogmind --------- Core Integrity 496/1300 Matter 205/300 Energy 100/100 System Corruption 31% Temperature Cool (0) Movement Flying (67) Ox1 Location -3/Research Parts ------- > --- POWER (3) -------- (None) > --- PROPULSION (6) --- Flying ITA-Biometal Exoskeleton > --- UTILITY (8) ------ Huge Storage Unit Improved Armor Integrity Analyzer > --- WEAPON (4) ------- Laser Plasma Construct/G > --- INVENTORY (25) --- Superbattery (507) Improved Matter Compressor (211) Advanced Signal Interpreter Precision Matter Filter Advanced Reaction Control System Experimental Focal Shield Advanced Force Field Advanced Hacking Suite Ghost Barrier Decoy Drone Bay (16/16) Dimensional Node Initializer Transdimensional Reconstructor Improved Grenade Launcher Missile Launcher RU-N14's Throwing Claymores v3 (10) RU-N14's Throwing Claymores v3 (10) RU-N14's Throwing Claymores v3 (10) Peak State ------------ > --- POWER ------------ Vortex Chain Reactor Multi-Antimatter Reactor > --- PROPULSION ------- Flying ITA-Biometal Exoskeleton > --- UTILITY ---------- Armored Scrap Engine Advanced Heat Sink Huge Storage Unit Experimental Signal Interpreter Improved Armor Integrity Analyzer Experimental Phase Shifter Makeshift Ablative Armor > --- WEAPON ----------- Kinetic Linear Construct/C High-powered Energy Phase Construct/G Directed Phase Construct/G Laser Plasma Construct/G > --- INVENTORY -------- Superbattery Improved Matter Compressor Precision Matter Filter Makeshift Transmission Jammer Advanced Reaction Control System Experimental Focal Shield Advanced Force Field Advanced Hacking Suite Ghost Barrier Decoy Drone Bay Dimensional Node Initializer Transdimensional Reconstructor Improved Grenade Launcher Missile Launcher Vortex Catalyst Activator RU-N14's Throwing Claymores v3 RU-N14's Throwing Claymores v3 RU-N14's Throwing Claymores v3 RU-N14's Throwing Claymores v3 RU-N14's Throwing Claymores v3 RU-N14's Throwing Claymores v3 [Rating: 177] Favorites ----------- Power Multi-Antimatter Reactor Engine Ion Engine Power Core Light Fission Core Reactor Multi-Antimatter Reactor Propulsion Light Treads Treads Light Treads Leg Aluminum Leg Flight Unit Flying ITA-Biometal Exoskeleton Utility Huge Storage Unit Device Armored Scrap Engine Storage Huge Storage Unit Processor Improved Armor Integrity Analyzer Protection Light Regenerative Plating Weapon Directed Phase Construct/G Energy Gun High-powered Energy Phase Construct/G Energy Cannon Advanced Beam Cannon Ballistic Gun Directed Phase Construct/G Ballistic Cannon Assault Cannon Launcher Missile Launcher Special Weapon Mining Laser Build | -11 -10 -10 -9 -9 -9 -8 -8 -8 -7 -6 -6 -5 -5 -5 -5 -5 -5 -4 -4 -4 -4 -4 -3 -3 ------- Run | Scr Mat Min Mat Min Exi Min Mat Sto Fac Fac DSF Fac Was Fac Upp Upp Zhi Pro Fac Upp Upp War Pro Res Slots Evolved 14 | . . . 2 . . . 2 . 2 2 . 2 . . . . . . 2 . . . . 2 Power 2 | . . . . . . . . . . 1 . . . . . . . . . . . . . 1 Propulsion 4 | . . . 1 . . . . . 1 . . 1 . . . . . . . . . . . 1 Utility 6 | . . . 1 . . . 2 . 1 . . . . . . . . . 2 . . . . . Weapon 2 | . . . . . . . . . . 1 . 1 . . . . . . . . . . . . Parts Attached 178 | . 6 9 27 6 . 2 28 37 5 . 2 6 3 1 3 2 6 . 2 3 7 6 3 14 Power 16 | . 1 1 3 1 . 1 1 3 1 . 1 . 1 . . . 1 . . . . . . 1 Engine 11 | . 1 1 3 1 . . 1 3 1 . . . . . . . . . . . . . . . Core 2 | . . . . . . 1 . . . . 1 . . . . . . . . . . . . . Reactor 3 | . . . . . . . . . . . . . 1 . . . 1 . . . . . . 1 Propulsion 23 | . 2 . 6 . . . 9 3 1 . . 1 . 1 . . . . . . . . . . Treads 21 | . 2 . 4 . . . 9 3 1 . . 1 . 1 . . . . . . . . . . Leg 2 | . . . 2 . . . . . . . . . . . . . . . . . . . . . Wheel . | . . . . . . . . . . . . . . . . . . . . . . . . . Hover . | . . . . . . . . . . . . . . . . . . . . . . . . . Flight . | . . . . . . . . . . . . . . . . . . . . . . . . . Utility 75 | . 2 3 3 5 . 1 9 13 3 . 1 2 2 . 2 2 5 . . 2 4 6 3 7 Device 37 | . 1 1 1 5 . 1 3 2 2 . . 1 1 . 1 1 2 . . . 2 5 3 5 Storage 4 | . . 1 1 . . . 1 . . . . . . . . . . . . . . . . 1 Processor 4 | . . . . . . . . . . . . . . . . 1 . . . . 2 . . 1 Hackware . | . . . . . . . . . . . . . . . . . . . . . . . . . Protection 30 | . 1 1 1 . . . 5 11 1 . 1 1 1 . 1 . 3 . . 2 . 1 . . Artifact . | . . . . . . . . . . . . . . . . . . . . . . . . . Weapon 64 | . 1 5 15 . . . 9 18 . . . 3 . . 1 . . . 2 1 3 . . 6 Energy Gun 22 | . 1 1 5 . . . 2 13 . . . . . . . . . . . . . . . . Energy Cannon 10 | . . . 4 . . . 3 1 . . . 2 . . . . . . . . . . . . Ballistic Gun 6 | . . 1 1 . . . 2 2 . . . . . . . . . . . . . . . . Ballistic Cannon 1 | . . . . . . . 1 . . . . . . . . . . . . . . . . . Launcher 20 | . . 2 5 . . . 1 2 . . . 1 . . 1 . . . 2 1 3 . . 2 Special Weapon 5 | . . 1 . . . . . . . . . . . . . . . . . . . . . 4 Impact Weapon . | . . . . . . . . . . . . . . . . . . . . . . . . . Slashing Weapon . | . . . . . . . . . . . . . . . . . . . . . . . . . Piercing Weapon . | . . . . . . . . . . . . . . . . . . . . . . . . . Special Melee Weapon . | . . . . . . . . . . . . . . . . . . . . . . . . . Unidentified Prototypes 25 | . . . 1 1 . . 1 9 . . . 1 . . . . 4 . . . . 2 . 6 Corrupted Parts 2 | . . . . . . . 1 . . . 1 . . . . . . . . . . . . . System Corruption 10 | . . . . . . . 4 . . . 6 . . . . . . . . . . . . . Parts Lost 66 | . . 5 11 1 . . 7 2 . . 6 . . . . 2 . 1 4 . 3 . 1 23 Power 10 | . . . 2 1 . . . . . . 1 . . . . . . . . . 1 . . 5 Propulsion 15 | . . . 4 . . . 2 . . . 3 . . . . . . . . . . . . 6 Utility 20 | . . 2 2 . . . 3 1 . . 1 . . . . 2 . . 2 . 1 . 1 5 Weapon 21 | . . 3 3 . . . 2 1 . . 1 . . . . . . 1 2 . 1 . . 7 Highest Loss Streak 8 | . . 3 5 1 . . 3 1 . . 4 . . . . 2 . 1 2 . 1 . 1 8 To Critical Strikes 1 | . . . . . . . . . . . 1 . . . . . . . . . . . . . Average Slot Usage (%) 81 | . 95 98 83 98 100 100 96 96 90 86 85 78 66 73 68 63 64 62 46 44 60 68 72 48 Engine 6 | . 14 14 10 10 11 10 4 9 6 13 9 5 2 3 . . . . . . . 4 5 1 Core 1 | . . . . . . . 4 . . . 2 5 1 1 5 5 5 5 5 5 5 4 . . Reactor 1 | . . . . . . . . . . . . . 4 5 1 . 1 5 5 5 4 . 4 5 Treads 17 | . 6 28 26 33 33 33 27 27 30 26 20 10 4 5 10 5 4 . 3 . 4 1 . . Leg 1 | . 20 . 4 . . . . . . . . 4 4 . . 3 5 5 . . . 3 . . Device 13 | . 7 6 9 20 22 22 18 12 19 13 13 14 12 11 12 13 13 17 12 10 9 11 16 12 Storage 7 | . 14 14 11 11 11 11 9 9 7 6 6 5 5 5 5 5 5 5 5 5 5 5 5 4 Processor 1 | . . . . . . . . . . . . . . . . 2 2 . . . 5 8 5 4 Protection 9 | . 3 7 4 . . . 14 20 10 13 13 7 9 11 9 5 4 5 4 4 10 10 8 1 Energy Gun 8 | . 14 12 11 . . . 7 17 14 13 11 . 4 . 8 11 11 9 4 2 1 7 8 1 Energy Cannon 4 | . . . . 22 22 22 10 . . . . . 5 5 3 5 5 5 3 . 5 5 5 2 Ballistic Gun 3 | . 14 12 1 . . . . . . . 4 18 6 5 2 . . . . 4 5 2 1 1 Naked Turns . | . . . . . . . . . . . . . . . . . . . . . . . . . Heaviest Build 159 | 12 17 22 35 36 36 36 119 119 108 116 121 129 155 155 155 114 123 123 119 118 129 141 141 159 Greatest Support 298 | 20 40 40 60 60 60 60 76 76 104 104 104 51 123 150 167 172 172 172 172 172 237 298 211 211 Greatest Overweight (x) 7 | . . . 2 . . . 2 1 1 1 7 7 2 1 1 . . . . . . . . 1 Average Overweight (x) . | . . . . . . . . 1 . 1 2 2 1 1 . . . . . . . . . . Largest Inventory Capacity 25 | . 8 10 15 15 15 15 25 25 25 25 25 25 25 25 25 25 25 25 25 25 25 25 25 25 Average Capacity 21 | . 8 9 14 15 15 15 18 25 25 25 25 25 25 25 25 25 25 25 25 25 25 25 25 25 Most Carried 25 | . 8 8 13 15 15 15 22 25 25 16 16 21 22 22 23 24 25 25 25 23 20 25 25 25 Average Carried 18 | . 7 6 7 11 15 14 16 23 17 16 15 18 21 22 22 23 24 25 24 19 18 22 24 23 Final Capacity 25 | 8 8 10 15 15 15 15 25 25 25 25 25 25 25 25 25 25 25 25 25 25 25 25 25 25 Final Carried 25 | 6 8 6 12 15 15 15 22 25 16 16 15 21 22 22 23 24 25 25 23 19 17 25 25 18 Class Distribution -------------------- 26% | Scavenger-Mutant 25% | Mutant 22% | Construct 9% | Commander-Construct 9% | Commander-Mutant 4% | Skirmisher Dominant Class ---------------- Mutant | -10/Materials Mutant | -10/Mines Scavenger-Mutant | -9/Materials Mutant | -9/Mines Scavenger-Mutant | -9/Exiles Scavenger-Mutant | -8/Mines Scavenger-Mutant | -8/Materials Scavenger-Mutant | -8/Storage Commander-Mutant | -7/Factory Commander-Mutant | -6/Factory Skirmisher | -6/DSF Construct | -5/Factory Skirmisher | -5/Waste Construct | -5/Factory Construct | -5/Upper Caves Construct | -5/Upper Caves Construct | -5/Zhirov Construct | -4/Proximity Caves Construct | -4/Factory Construct | -4/Upper Caves Construct | -4/Upper Caves Commander-Construct | -4/Warlord Commander-Construct | -3/Proximity Caves Mutant | -3/Research Resources | -11 -10 -10 -9 -9 -9 -8 -8 -8 -7 -6 -6 -5 -5 -5 -5 -5 -5 -4 -4 -4 -4 -4 -3 -3 ----------- Run | Scr Mat Min Mat Min Exi Min Mat Sto Fac Fac DSF Fac Was Fac Upp Upp Zhi Pro Fac Upp Upp War Pro Res Matter Collected 4416 | 200 63 234 530 143 . 20 337 436 52 . 104 125 84 82 180 70 . 91 11 238 289 96 406 625 Remotely . | . . . . . . . . . . . . . . . . . . . . . . . . . Salvage Created 11524 | . 143 71 856 186 . 142 1160 1990 92 . 715 662 . 419 364 629 . 72 233 210 630 360 909 1681 Parts 522 | . 4 8 56 12 . 6 72 84 3 . 29 22 . 20 17 22 . 3 17 6 26 4 34 77 Haulers Intercepted 9 | . . . 3 . . . 2 3 . . . . . . . . . . . . . . . 1 Recyclers Shooed 10 | . . . 3 . . . 3 2 . . . 1 . . . . . . . . . . . 1 Parts Field Recycled . | . . . . . . . . . . . . . . . . . . . . . . . . . Retrieved Matter . | . . . . . . . . . . . . . . . . . . . . . . . . . Parts Self-Destructed 75 | . . . . . . . . . . . . . . . 8 14 . 2 . 2 11 . 38 . Prevented 8 | . . . . . . . . . . . . . . . 1 . . . . . 1 . 6 . Kills | -11 -10 -10 -9 -9 -9 -8 -8 -8 -7 -6 -6 -5 -5 -5 -5 -5 -5 -4 -4 -4 -4 -4 -3 -3 ------- Run | Scr Mat Min Mat Min Exi Min Mat Sto Fac Fac DSF Fac Was Fac Upp Upp Zhi Pro Fac Upp Upp War Pro Res Combat Hostiles Destroyed 222 | . 3 11 20 4 . 3 20 31 2 . 9 10 . 1 11 9 . 1 17 4 10 7 15 34 Guns 81 | . 3 2 8 . . . 5 25 1 . 8 2 . 1 4 4 . 1 1 . 4 4 3 5 Cannons 52 | . . 1 . 4 . 3 13 . . . . 1 . . 1 5 . . 3 1 . 1 8 11 AOE 85 | . . 8 12 . . . 1 6 1 . . 7 . . 5 . . . 13 3 6 2 4 17 Classes Destroyed 19 | . 1 2 6 2 . . 3 1 1 . . . . 1 . 1 . . . . . 1 . . Worker 17 | . . . 2 . . . 4 4 . . . 3 . . . . . . . . . . . 4 Builder 11 | . . 1 1 . . . 3 1 . . . . . 1 . . . . . . . . . 4 Tunneler 2 | . . . . 1 . . . . . . . 1 . . . . . . . . . . . . Hauler 9 | . . . 3 . . . 2 3 . . . . . . . . . . . . . . . 1 Recycler 11 | . . . 2 . . . 1 2 . . . 2 . 1 . . . . . . . . . 3 Operator 3 | . . . . . . . 1 . . . . . . 1 . . . . . . . . . 1 Watcher 2 | . . . 1 . . . . . . . . 1 . . . . . . . . . . . . Swarmer 45 | . . . 7 . . . 7 . . . . . . . 4 4 . . 13 . 2 . 1 7 Grunt 98 | . 3 2 10 3 . 3 7 19 1 . 4 7 . . 6 3 . . 4 3 5 5 5 8 Brawler 4 | . . . . . . . . 1 . . 2 . . . . . . 1 . . . . . . Duelist 3 | . . . . 1 . . . . . . . . . . . . . . . . . . 2 . Protector 1 | . . . . . . . . . . . . . . . . . . . . . . 1 . . Sentry 27 | . . . 3 . . . 4 10 . . . 2 . 1 1 . . . . 1 1 . 1 3 Hunter 13 | . . . . . . . 1 1 . . 3 . . . . 1 . . . . . . 4 3 Programmer 20 | . . . . . . . . . 1 . . 1 . . . 1 . . . . 2 1 2 12 Heavy 2 | . . . . . . . 1 . . . . . . . . . . . . . . . . 1 Packrat 1 | . . . . . . . . . . . . . . . . . . . . . 1 . . . Samaritan 9 | . . . . . . . . . . . . . . . . 5 . . . 1 3 . . . Assembled 9 | . . 9 . . . . . . . . . . . . . . . . . . . . . . Wasp 1 | . . . . . . . . . . . . . . 1 . . . . . . . . . . Martyr 2 | . . . . . . . . . . . . . . 2 . . . . . . . . . . Best Kill Streak 17 | . 2 9 9 2 . 3 8 7 2 . 3 17 . 1 5 4 . 1 17 3 6 6 8 11 Combat Bots Only 17 | . 2 9 7 2 . 3 6 5 2 . 3 10 . 1 5 4 . 1 17 3 6 6 8 7 Max Kills in Single Turn 4 | . 1 2 4 1 . 1 2 3 1 . 1 3 . 1 2 2 . 1 4 3 2 2 3 4 Gunslinging . | . . . . . . . . . . . . . . . . . . . . . . . . . Exploded 4 | . . 2 4 . . . 1 2 1 . . 3 . . 2 . . . 4 3 2 1 2 3 Melee . | . . . . . . . . . . . . . . . . . . . . . . . . . Uniques/NPCs Destroyed . | . . . . . . . . . . . . . . . . . . . . . . . . . Combat | -11 -10 -10 -9 -9 -9 -8 -8 -8 -7 -6 -6 -5 -5 -5 -5 -5 -5 -4 -4 -4 -4 -4 -3 -3 -------- Run | Scr Mat Min Mat Min Exi Min Mat Sto Fac Fac DSF Fac Was Fac Upp Upp Zhi Pro Fac Upp Upp War Pro Res Damage Taken 19115 | . 129 736 1260 212 . 101 1440 1430 179 . 1666 503 . 163 564 367 . 629 1311 281 635 222 813 6474 Core 1959 | . 34 120 200 42 . . 102 45 15 . 133 18 . . 72 10 . 43 132 23 54 20 92 804 Absorbed by Shields 1924 | . . . . 15 . 36 55 39 . . . . . . 42 69 . . . . 290 193 792 393 Regen/Repaired (Parts) 680 | . . . . . . . . 128 45 . 106 145 12 . 52 55 . . . . . 137 . . Core Remaining (%) 73 | 100 . 38 . . . 39 . 73 97 . 84 . . . . . . 85 . . . . 72 . Volleys Fired 647 | . 12 31 70 14 . 12 82 96 7 . 39 18 . 12 19 32 . 3 27 8 30 14 37 84 Largest 4 | . 2 2 2 2 . 2 2 2 2 . 3 3 . 4 4 3 . 3 2 2 3 4 4 4 Hottest 266 | . 70 120 100 136 . 136 136 117 96 . 173 191 . 260 221 171 . 171 144 96 171 221 221 266 Shots Fired 1384 | . 24 44 109 28 . 24 151 189 14 . 94 39 . 43 45 86 . 9 43 13 54 43 135 197 Gun 815 | . 24 23 86 . . . 34 185 14 . 94 30 . 17 26 54 . 6 16 6 28 33 62 77 Cannon 454 | . . . . 28 . 24 116 1 . . . 4 . 26 13 32 . 3 16 4 17 10 73 87 Launcher 63 | . . 11 11 . . . 1 3 . . . 5 . . 6 . . . 11 3 9 . . 3 Special 52 | . . 10 12 . . . . . . . . . . . . . . . . . . . . 30 Kinetic 204 | . 12 13 16 . . . 2 . 2 . 1 25 . 17 8 . . . . . . . 36 72 Thermal 809 | . 12 20 82 28 . 24 114 123 . . 54 9 . 26 31 86 . 9 32 10 28 24 48 49 Explosive 90 | . . 11 11 . . . 1 3 . . . 5 . . 6 . . . 11 3 9 . . 30 Electromagnetic 255 | . . . . . . . 34 63 12 . 39 . . . . . . . . . 17 10 37 43 Entropic 26 | . . . . . . . . . . . . . . . . . . . . . . 9 14 3 Robot Hit Streak 23 | . 8 4 14 7 . 9 13 23 5 . 8 7 . 8 8 7 . 6 13 16 12 10 6 15 Robot Miss Streak 9 | . 2 3 6 2 . 4 4 5 2 . 4 3 . 4 4 3 . 1 3 2 5 3 9 3 Penetration Max 1 | . . . . . . . . . . . . 1 . 1 . . . . . . . . . . Secondary Targets 3 | . . . . . . . . 2 . . 1 . . . . . . . . . . . . . Max Gunslinging Chain 1 | . . . . . . . . 1 . . 1 . . . . . . . . . . . . . Shots Hit Robots 868 | . 17 22 75 19 . 15 97 138 9 . 62 21 . 25 22 48 . 8 23 10 41 31 55 130 Core Hits 569 | . 5 25 46 6 . 7 48 84 3 . 20 37 . 17 21 22 . 4 26 13 37 29 37 82 Critical Kills 2 | . 1 . . . . . . . . . . . . 1 . . . . . . . . . . Critical Parts Destroyed 11 | . . 1 . . . . . . . . . . . . 1 4 . . . . . 2 3 . Critical Strikes 40 | . 2 1 2 . . . . 3 . . . . . 1 5 11 . 2 4 . . 2 3 4 Burn 23 | . 1 . 2 . . . . 3 . . . . . . 4 7 . 2 4 . . . . . Destroy 8 | . 1 1 . . . . . . . . . . . 1 1 4 . . . . . . . . Sever 4 | . . . . . . . . . . . . . . . . . . . . . . . . 4 Detonate 5 | . . . . . . . . . . . . . . . . . . . . . . 2 3 . Melee Attacks . | . . . . . . . . . . . . . . . . . . . . . . . . . Impact . | . . . . . . . . . . . . . . . . . . . . . . . . . Slashing . | . . . . . . . . . . . . . . . . . . . . . . . . . Piercing . | . . . . . . . . . . . . . . . . . . . . . . . . . Sneak Attacks . | . . . . . . . . . . . . . . . . . . . . . . . . . Combat Hostiles . | . . . . . . . . . . . . . . . . . . . . . . . . . Follow-up Attacks . | . . . . . . . . . . . . . . . . . . . . . . . . . Damage Inflicted 39761 | . 220 852 1880 385 . 308 2352 3852 227 . 1642 2484 . 1150 1568 1566 . 247 2529 892 2172 2441 2835 10159 Guns 13809 | . 216 154 859 . . . 642 2680 170 . 1642 576 . 614 525 875 . 150 104 187 934 889 935 1657 Cannons 7212 | . . . . 385 . 308 1410 . . . . 130 . 536 127 691 . 97 255 51 148 231 1184 1659 Explosions 17250 | . . 602 949 . . . 276 1172 57 . . 1778 . . 916 . . . 2170 654 1090 1321 716 5549 Melee . | . . . . . . . . . . . . . . . . . . . . . . . . . Ramming 218 | . 4 . . . . . 24 . . . . . . . . . . . . . . . . 190 Kinetic 3838 | . 128 95 202 . . . . . . . 24 470 . 478 170 . . . . . . . 644 1627 Thermal 15098 | . 88 155 729 385 . 308 1484 1864 57 . 1088 290 . 672 482 1566 . 247 359 238 934 1829 1197 1126 Explosive 13295 | . . 602 949 . . . 202 886 . . . 1514 . . 916 . . . 2170 654 1090 . . 4312 Electromagnetic 4136 | . . . . . . . 642 1102 170 . 530 210 . . . . . . . . 148 231 540 563 Impact . | . . . . . . . . . . . . . . . . . . . . . . . . . Slashing 1104 | . . . . . . . . . . . . . . . . . . . . . . . . 1104 Piercing . | . . . . . . . . . . . . . . . . . . . . . . . . . Entropic 2072 | . . . . . . . . . . . . . . . . . . . . . . 381 454 1237 Highest Corruption 31 | . 3 3 . . . . 4 2 . . 12 . . 2 2 3 3 3 . . . . 2 31 Average Corruption 5 | . 2 3 . . . . 3 1 . . 10 . . 2 2 2 3 3 . . . . 1 19 Corruption Purged 4 | . . . . . . . 4 . . . . . . . . . . . . . . . . . Corruption Blocked 24 | . . . . . . . . . . . . . . . . . . . . . 3 21 . . Effects 97 | . 4 21 . . . . 1 8 . . 6 . . 3 8 6 4 1 . . . . 3 32 Message Errors 20 | . 2 5 . . . . . 2 . . 1 . . . 2 1 1 1 . . . . . 5 Matter Fused 22 | . 1 3 . . . . 1 4 . . 3 . . . 3 . 2 . . . . . . 5 Heat Flow Errors 16 | . . 4 . . . . . . . . 2 . . 1 1 3 . . . . . . . 5 Energy Discharges 10 | . . 4 . . . . . 1 . . . . . 1 . . 1 . . . . . 1 2 Parts Rejected 1 | . . . . . . . . . . . . . . . . . . . . . . . . 1 Data Loss (minor) 9 | . . 3 . . . . . . . . . . . . 2 . . . . . . . 1 3 Data Loss (major) 5 | . 1 . . . . . . . . . . . . . . 1 . . . . . . 1 2 Misfires 3 | . . 2 . . . . . 1 . . . . . . . . . . . . . . . . Misdirections 7 | . . . . . . . . . . . . . . . . . . . . . . . . 7 Weapon Failures 4 | . . . . . . . . . . . . . . 1 . 1 . . . . . . . 2 Overload Shots . | . . . . . . . . . . . . . . . . . . . . . . . . . Overflow Damage 880 | . . 32 39 11 . . 17 21 . . . 79 . . 56 74 . . 50 5 52 62 15 367 Projectiles 248 | . . . . 11 . . 11 . . . . . . . . 74 . . 7 . 49 1 15 80 Explosions 560 | . . 32 39 . . . 6 21 . . . 79 . . 56 . . . 43 5 3 61 . 215 Melee 72 | . . . . . . . . . . . . . . . . . . . . . . . . 72 Knockbacks 15 | . . . . . . . . . . . . . . . . . . . . . . . 3 12 Impact . | . . . . . . . . . . . . . . . . . . . . . . . . . Kinetic 12 | . . . . . . . . . . . . . . . . . . . . . . . 2 10 Secondary 3 | . . . . . . . . . . . . . . . . . . . . . . . 1 2 Self-Inflicted Damage 636 | . . 76 146 . . . 73 145 . . . . . . . . . . . . . . . 196 Shots 15 | . . 2 4 . . . 2 6 . . . . . . . . . . . . . . . 1 Rammed 5 | . . . . . . . 3 . . . . . . . . . . . . . . . . 2 Targets Rammed 10 | . 1 . . . . . 3 . . . . . . . . . . . . . . . . 6 Kicked 5 | . 1 . . . . . . . . . . . . . . . . . . . . . . 4 Crushed . | . . . . . . . . . . . . . . . . . . . . . . . . . Highest Temperature 484 | . 69 156 331 370 . 336 360 355 56 . 364 75 . 484 340 325 . 179 252 17 94 186 173 245 Average Temperature 103 | . 32 49 139 143 . 161 133 82 23 . 122 35 . 202 117 73 . 79 112 4 30 82 83 89 Received Heat Transfer 3962 | . 69 228 462 107 . 48 459 714 72 . 252 129 . 36 162 54 . 220 235 42 178 55 128 312 Effects 27 | . . . 3 1 . 1 2 3 . . 5 . . 10 1 . . . 1 . . . . . Shutdowns 6 | . . . 1 1 . . . . . . 2 . . 1 1 . . . . . . . . . Energy Bleed 9 | . . . 1 . . 1 1 . . . 3 . . 2 . . . . 1 . . . . . Interference 8 | . . . . . . . . 3 . . . . . 5 . . . . . . . . . . Matter Decay 1 | . . . . . . . 1 . . . . . . . . . . . . . . . . . Damage (minor) 3 | . . . 1 . . . . . . . . . . 2 . . . . . . . . . . Siege Activations . | . . . . . . . . . . . . . . . . . . . . . . . . . Robots Corrupted 3 | . . . . . . . 1 . . . 1 . . . . . . . . . . . . 1 Combat Hostiles 3 | . . . . . . . 1 . . . 1 . . . . . . . . . . . . 1 Parts Fried 22 | . . . . . . . 6 9 . . 4 2 . . . . . . . . . . . 1 Impact Corruptions 3 | . . . . . . . . . . . . . . . . . . . . . . . . 3 Robots Melted 1 | . . . . . . . . . . . . . . . 1 . . . . . . . . . Combat Hostiles 1 | . . . . . . . . . . . . . . . 1 . . . . . . . . . Parts Melted 33 | . . . 4 2 . . 3 8 . . . . . . 3 7 . 1 2 . . 1 1 1 Heat Transferred 17904 | . 333 349 1852 703 . 555 2653 3643 . . 481 211 . 481 811 1795 . 359 892 111 222 851 659 943 Parts Sabotaged . | . . . . . . . . . . . . . . . . . . . . . . . . . Parts Stolen . | . . . . . . . . . . . . . . . . . . . . . . . . . Parts Stripped . | . . . . . . . . . . . . . . . . . . . . . . . . . Power Chain Reactions 12 | . . . . . . . 2 6 1 . . 1 . . . . . . . . 1 1 . . Missiles Intercepted . | . . . . . . . . . . . . . . . . . . . . . . . . . Alert | -11 -10 -10 -9 -9 -9 -8 -8 -8 -7 -6 -6 -5 -5 -5 -5 -5 -5 -4 -4 -4 -4 -4 -3 -3 ------- Run | Scr Mat Min Mat Min Exi Min Mat Sto Fac Fac DSF Fac Was Fac Upp Upp Zhi Pro Fac Upp Upp War Pro Res Peak Influence 1742 | . 137 66 429 321 . 85 342 506 315 7 195 366 128 536 . . . . 540 . . . . 1742 Initial 218 | . . 53 13 166 . . 33 76 218 2 4 102 128 . . . . . 50 . . . . 216 Average 215 | . 99 37 72 255 . 16 140 322 163 2 103 134 107 251 . . . . 206 . . . . 628 Maximum Alert Level 5 | . . . 2 1 . . 1 2 1 . . 1 . 2 . . . . 2 . . . . 5 Low Security (%) 59 | . 100 100 93 15 . 100 74 25 58 100 100 87 100 27 . . . . 62 . . . . . Level 1 23 | . . . 5 84 . . 25 32 41 . . 12 . 56 . . . . 13 . . . . 30 Level 2 15 | . . . 1 . . . . 41 . . . . . 16 . . . . 23 . . . . 45 Level 3 . | . . . . . . . . . . . . . . . . . . . . . . . . 5 Level 4 1 | . . . . . . . . . . . . . . . . . . . . . . . . 16 Level 5 . | . . . . . . . . . . . . . . . . . . . . . . . . 2 High Security . | . . . . . . . . . . . . . . . . . . . . . . . . . Max Security . | . . . . . . . . . . . . . . . . . . . . . . . . . Sterilizations 1 | . . . . . . . . . . . 1 . . . . . . . . . . . . . Squads Dispatched 37 | . 2 . 2 . . . 2 7 2 . 1 5 . 5 . . . . 3 . . . 1 7 Investigation 5 | . . . . . . . . 3 1 . . . . . . . . . . . . . . 1 Extermination 4 | . . . . . . . . . 1 . . . . . . . . . . . . . . 3 Reinforcement 19 | . 2 . 2 . . . 2 2 . . 1 2 . 4 . . . . 2 . . . . 2 Assault 5 | . . . . . . . . 2 . . . 1 . . . . . . . . . . 1 1 Garrison 4 | . . . . . . . . . . . . 2 . 1 . . . . 1 . . . . . Intercept . | . . . . . . . . . . . . . . . . . . . . . . . . . Searches Triggered . | . . . . . . . . . . . . . . . . . . . . . . . . . Construction Impeded 2 | . . . . . . . . . . . . 1 . . . . . . 1 . . . . . Haulers Reinforced 1 | . . . . . . . . . . . . . . . . . . . . . . . . 1 Active Scanning Responses . | . . . . . . . . . . . . . . . . . . . . . . . . . Cargo Convoy Interrupts . | . . . . . . . . . . . . . . . . . . . . . . . . . Stealth | -11 -10 -10 -9 -9 -9 -8 -8 -8 -7 -6 -6 -5 -5 -5 -5 -5 -5 -4 -4 -4 -4 -4 -3 -3 --------- Run | Scr Mat Min Mat Min Exi Min Mat Sto Fac Fac DSF Fac Was Fac Upp Upp Zhi Pro Fac Upp Upp War Pro Res Distress Signals 18 | . . . 1 . . . 2 8 . . . 1 . . . . . . 1 . . 1 . 4 Communications Jammed 81 | . . . . . . . . . . . . . . . . . . . . . . . . 81 Distress Signals 80 | . . . . . . . . . . . . . . . . . . . . . . . . 80 Times Spotted 376 | . 8 24 30 4 . 3 31 53 5 . 10 12 . 12 11 9 . 9 22 4 10 30 25 64 Peak Tracking Total 16 | . 3 16 5 2 . 3 6 8 4 . 3 8 . 9 5 4 . 8 8 3 5 16 7 12 Tactical Retreats 20 | . . 2 . . . . 3 3 . . 1 . . 1 1 . . 2 1 . . . . 6 Traps | -11 -10 -10 -9 -9 -9 -8 -8 -8 -7 -6 -6 -5 -5 -5 -5 -5 -5 -4 -4 -4 -4 -4 -3 -3 ------- Run | Scr Mat Min Mat Min Exi Min Mat Sto Fac Fac DSF Fac Was Fac Upp Upp Zhi Pro Fac Upp Upp War Pro Res Traps Triggered 18 | . 2 . . . . . . 5 1 . 1 2 . 1 . . . . 2 . . . . 4 Indirectly . | . . . . . . . . . . . . . . . . . . . . . . . . . Trap Hack Attempts . | . . . . . . . . . . . . . . . . . . . . . . . . . Triggered . | . . . . . . . . . . . . . . . . . . . . . . . . . Disarmed . | . . . . . . . . . . . . . . . . . . . . . . . . . Reprogrammed . | . . . . . . . . . . . . . . . . . . . . . . . . . Reused . | . . . . . . . . . . . . . . . . . . . . . . . . . Traps Extracted . | . . . . . . . . . . . . . . . . . . . . . . . . . Installed . | . . . . . . . . . . . . . . . . . . . . . . . . . Triggered 9 | . . . . . . . . . . . . . . . . . . . . . . 9 . . Machines | -11 -10 -10 -9 -9 -9 -8 -8 -8 -7 -6 -6 -5 -5 -5 -5 -5 -5 -4 -4 -4 -4 -4 -3 -3 ---------- Run | Scr Mat Min Mat Min Exi Min Mat Sto Fac Fac DSF Fac Was Fac Upp Upp Zhi Pro Fac Upp Upp War Pro Res Machines Disabled 24 | . . . 1 3 . 1 1 6 . . . 2 . 3 . 1 . . . . . 1 1 4 Max in Single Turn 2 | . . . 1 1 . 1 1 1 . . . 2 . 1 . 1 . . . . . 1 1 1 Garrison Access 1 | . . . . . . . . . . . . 1 . . . . . . . . . . . . Machines Sabotaged . | . . . . . . . . . . . . . . . . . . . . . . . . . Overloaded Fab Kills . | . . . . . . . . . . . . . . . . . . . . . . . . . Hacking | -11 -10 -10 -9 -9 -9 -8 -8 -8 -7 -6 -6 -5 -5 -5 -5 -5 -5 -4 -4 -4 -4 -4 -3 -3 --------- Run | Scr Mat Min Mat Min Exi Min Mat Sto Fac Fac DSF Fac Was Fac Upp Upp Zhi Pro Fac Upp Upp War Pro Res Machines Accessed 38 | . 2 . 2 1 2 . 1 12 1 1 . 3 . 1 1 . 4 . 1 2 1 2 . 1 Terminals 20 | . 2 . 2 . . . 1 10 . 1 . 1 . 1 . . . . 1 . . . . 1 Fabricators 2 | . . . . . . . . . . . . 2 . . . . . . . . . . . . Repair Stations 3 | . . . . . . . . 2 1 . . . . . . . . . . . . . . . Recycling Units . | . . . . . . . . . . . . . . . . . . . . . . . . . Scanalyzers . | . . . . . . . . . . . . . . . . . . . . . . . . . Garrison Access . | . . . . . . . . . . . . . . . . . . . . . . . . . Total Hacks 87 | . 4 . 4 1 2 . 3 30 1 1 . 6 . 1 1 . 17 . 3 2 1 6 . 4 Successful 56 | . 1 . . 1 2 . 2 16 . 1 . 3 . 1 1 . 17 . 1 2 1 6 . 1 Failed 31 | . 3 . 4 . . . 1 14 1 . . 3 . . . . . . 2 . . . . 3 Catastrophic 3 | . . . 2 . . . 1 . . . . . . . . . . . . . . . . . Database Lockouts . | . . . . . . . . . . . . . . . . . . . . . . . . . Manual 26 | . 4 . 4 . 1 . 3 7 . . . 2 . 1 . . . . 3 . . . . 1 Terminals 43 | . 4 . 4 . . . 3 21 . 1 . 2 . 1 . . . . 3 . . . . 4 Fabricators 4 | . . . . . . . . . . . . 4 . . . . . . . . . . . . Repair Stations 10 | . . . . . . . . 9 1 . . . . . . . . . . . . . . . Recycling Units . | . . . . . . . . . . . . . . . . . . . . . . . . . Scanalyzers . | . . . . . . . . . . . . . . . . . . . . . . . . . Garrison Access . | . . . . . . . . . . . . . . . . . . . . . . . . . Terminal Hacks 45 | . 1 . . 1 2 . 2 8 . 1 . . . 1 1 . 17 . 1 2 1 6 . 1 Record 6 | . . . . . 1 . . . . . . . . . . . 5 . . . . . . . Part Schematic 5 | . 1 . . . . . . . . . . . . . . . 4 . . . . . . . Robot Analysis 4 | . . . . . . . . . . . . . . . . . 4 . . . . . . . Prototype ID Bank 9 | . . . . . . . . . . . . . . . . . 4 . . . . 5 . . Open Door 9 | . . . . 1 . . . 3 . . . . . . 1 . . . . 2 1 1 . . Open DSF 1 | . . . . . . . . . . 1 . . . . . . . . . . . . . . Branch Access Points 3 | . . . . . . . 1 . . . . . . 1 . . . . 1 . . . . . Terminal Index 1 | . . . . . . . . . . . . . . . . . . . . . . . . 1 Alert Level 1 | . . . . . . . . 1 . . . . . . . . . . . . . . . . Unreport Threat 4 | . . . . . . . 1 3 . . . . . . . . . . . . . . . . Zone Layout 1 | . . . . . . . . 1 . . . . . . . . . . . . . . . . EX-Prototype ID Bank 1 | . . . . . 1 . . . . . . . . . . . . . . . . . . . Fabricator Hacks 2 | . . . . . . . . . . . . 2 . . . . . . . . . . . . Build 2 | . . . . . . . . . . . . 2 . . . . . . . . . . . . Repair Station Hacks 5 | . . . . . . . . 5 . . . . . . . . . . . . . . . . Scan Component 3 | . . . . . . . . 3 . . . . . . . . . . . . . . . . Repair 2 | . . . . . . . . 2 . . . . . . . . . . . . . . . . Recycling Unit Hacks . | . . . . . . . . . . . . . . . . . . . . . . . . . Scanalyzer . | . . . . . . . . . . . . . . . . . . . . . . . . . Garrison Access Hacks . | . . . . . . . . . . . . . . . . . . . . . . . . . Unauthorized Hacks 4 | . . . . . . . . 3 . . . 1 . . . . . . . . . . . . Terminals 3 | . . . . . . . . 3 . . . . . . . . . . . . . . . . Botnet 3 | . . . . . . . . 3 . . . . . . . . . . . . . . . . Fabricators 1 | . . . . . . . . . . . . 1 . . . . . . . . . . . . Haulers 1 | . . . . . . . . . . . . 1 . . . . . . . . . . . . Repair Stations . | . . . . . . . . . . . . . . . . . . . . . . . . . Recycling Units . | . . . . . . . . . . . . . . . . . . . . . . . . . Scanalyzers . | . . . . . . . . . . . . . . . . . . . . . . . . . Garrison Access . | . . . . . . . . . . . . . . . . . . . . . . . . . Data Cores Recovered 2 | . . . . . . . 1 . . . . . . 1 . . . . . . . . . . Used 1 | . . . . . . . 1 . . . . . . . . . . . . . . . . . Hacking Detections 21 | . 2 . 2 . . . 1 10 1 . . 3 . . . . . . 1 . . . . 1 Full Trace Events 3 | . . . . . . . . 3 . . . . . . . . . . . . . . . . Feedback Events 1 | . . . . . . . . 1 . . . . . . . . . . . . . . . . Corruption 1 | . . . . . . . . 1 . . . . . . . . . . . . . . . . Feedback Blocked . | . . . . . . . . . . . . . . . . . . . . . . . . . Robot Schematics Acquired . | . . . . . . . . . . . . . . . . . . . . . . . . . Robots Built . | . . . . . . . . . . . . . . . . . . . . . . . . . Authchips . | . . . . . . . . . . . . . . . . . . . . . . . . . Time . | . . . . . . . . . . . . . . . . . . . . . . . . . Total Robot Build Rating . | . . . . . . . . . . . . . . . . . . . . . . . . . Part Schematics Acquired 5 | . 1 . . . . . . . . . . . . . . . 4 . . . . . . . Parts Built 3 | . . . . . . . . . . . . 3 . . . . . . . . . . . . Authchips . | . . . . . . . . . . . . . . . . . . . . . . . . . Time 122 | . . . . . . . . . . . . 122 . . . . . . . . . . . . Total Part Build Rating 21 | . . . . . . . . . . . . 21 . . . . . . . . . . . . Parts Repaired 2 | . . . . . . . . 2 . . . . . . . . . . . . . . . . Time 113 | . . . . . . . . 113 . . . . . . . . . . . . . . . . Parts Recycled . | . . . . . . . . . . . . . . . . . . . . . . . . . Recycled Matter . | . . . . . . . . . . . . . . . . . . . . . . . . . Retrieved Matter . | . . . . . . . . . . . . . . . . . . . . . . . . . Retrieved Components . | . . . . . . . . . . . . . . . . . . . . . . . . . Parts Scanalyzed . | . . . . . . . . . . . . . . . . . . . . . . . . . Part Schematics Acquired . | . . . . . . . . . . . . . . . . . . . . . . . . . Parts Damaged . | . . . . . . . . . . . . . . . . . . . . . . . . . Bothacking | -11 -10 -10 -9 -9 -9 -8 -8 -8 -7 -6 -6 -5 -5 -5 -5 -5 -5 -4 -4 -4 -4 -4 -3 -3 ------------ Run | Scr Mat Min Mat Min Exi Min Mat Sto Fac Fac DSF Fac Was Fac Upp Upp Zhi Pro Fac Upp Upp War Pro Res Used RIF Installer . | . . . . . . . . . . . . . . . . . . . . . . . . . Robots Hacked . | . . . . . . . . . . . . . . . . . . . . . . . . . Non-combat . | . . . . . . . . . . . . . . . . . . . . . . . . . Combat . | . . . . . . . . . . . . . . . . . . . . . . . . . Robot Hacks Applied . | . . . . . . . . . . . . . . . . . . . . . . . . . Relay Couplers Released 1 | . . . . . . . . . . . . 1 . . . . . . . . . . . . Machine Destruction 1 | . . . . . . . . . . . . 1 . . . . . . . . . . . . Fabnet Peak Effective % . | . . . . . . . . . . . . . . . . . . . . . . . . . Robots Rewired 7 | . . . . . . . . . . . . . . . . . . . . . . 5 2 . Allies Hacked 2 | . . . . . . . . . . . . . . . . . . . . . . . . 2 Hacks Repelled . | . . . . . . . . . . . . . . . . . . . . . . . . . Allies | -11 -10 -10 -9 -9 -9 -8 -8 -8 -7 -6 -6 -5 -5 -5 -5 -5 -5 -4 -4 -4 -4 -4 -3 -3 -------- Run | Scr Mat Min Mat Min Exi Min Mat Sto Fac Fac DSF Fac Was Fac Upp Upp Zhi Pro Fac Upp Upp War Pro Res Total Allies 51 | . . . . . . . . 12 12 . . . 20 . . . . . . . . 5 2 . Largest Group 20 | . . . . . . . . 11 10 4 4 . 20 20 . . . . . . . 5 6 6 Highest-Rated Group 798 | . . . . . . . . 185 199 77 77 . 798 798 . . . . . . . 316 340 340 Highest-Rated Ally 65 | . . . . . . . . 31 31 29 29 . 50 50 . . . . . . . 65 65 65 Total Orders 7 | . . . . . . . . . . . . . . . . . . . . . . 7 . . STAY 4 | . . . . . . . . . . . . . . . . . . . . . . 4 . . FOLLOW 3 | . . . . . . . . . . . . . . . . . . . . . . 3 . . Ally Attacks 284 | . . . . . . . . 61 30 . 26 . . 97 . . . . . . . 4 25 41 Total Damage 6726 | . . . . . . . . 754 432 . 335 . . 2853 . . . . . . . 164 1143 1045 Kills 50 | . . . . . . . . 12 3 . 2 . . 17 . . . . . . . 2 6 8 Allies Corrupted 1 | . . . . . . . . . . . . . . . . . . . . . . . . 1 Allies Melted . | . . . . . . . . . . . . . . . . . . . . . . . . . Intel | -11 -10 -10 -9 -9 -9 -8 -8 -8 -7 -6 -6 -5 -5 -5 -5 -5 -5 -4 -4 -4 -4 -4 -3 -3 ------- Run | Scr Mat Min Mat Min Exi Min Mat Sto Fac Fac DSF Fac Was Fac Upp Upp Zhi Pro Fac Upp Upp War Pro Res Robot Analysis Total 4 | . . . . . . . . . . . . . . . . . 4 . . . . . . . Derelict Logs Recovered 9 | . . 1 . . . . . . . . . . . . 1 2 . 2 . . 3 . . . Drone Launches . | . . . . . . . . . . . . . . . . . . . . . . . . . Drone Recoveries . | . . . . . . . . . . . . . . . . . . . . . . . . . Exploration | -11 -10 -10 -9 -9 -9 -8 -8 -8 -7 -6 -6 -5 -5 -5 -5 -5 -5 -4 -4 -4 -4 -4 -3 -3 ------------- Run | Scr Mat Min Mat Min Exi Min Mat Sto Fac Fac DSF Fac Was Fac Upp Upp Zhi Pro Fac Upp Upp War Pro Res Turns Passed 14884 | . 317 1065 1068 455 365 275 1139 2577 965 92 529 519 473 380 481 423 132 113 177 358 677 727 515 1062 Spaces Moved 10429 | 1 199 600 485 250 228 147 431 859 486 39 182 314 452 312 404 551 216 189 153 466 834 951 505 1175 Core . | . . . . . . . . . . . . . . . . . . . . . . . . . Treads 5353 | . 46 600 474 250 228 147 431 859 486 39 120 . 89 156 393 . . . 90 . 736 209 . . Legs 2425 | 1 153 . 11 . . . . . . . . 295 363 . . 468 216 189 4 . . 582 . 143 Wheels 81 | . . . . . . . . . . . 62 19 . . . . . . . . . . . . Hover 1716 | . . . . . . . . . . . . . . . 11 83 . . 59 466 98 23 505 471 Flight 854 | . . . . . . . . . . . . . . 156 . . . . . . . 137 . 561 Fastest Speed 38 | 120 120 160 160 160 160 160 160 243 162 242 180 114 99 87 91 54 54 54 54 70 70 38 38 52 Average Speed 115 | 120 129 160 163 160 160 160 185 243 189 242 221 127 102 98 101 57 54 54 69 70 70 64 41 64 Slowest Speed 320 | 120 160 160 260 160 160 160 320 243 242 242 242 195 114 174 118 92 54 54 70 70 70 70 108 78 Overloaded Moves . | . . . . . . . . . . . . . . . . . . . . . . . . . Propulsion Burnouts . | . . . . . . . . . . . . . . . . . . . . . . . . . Robots Hopped . | . . . . . . . . . . . . . . . . . . . . . . . . . Cave-ins Triggered . | . . . . . . . . . . . . . . . . . . . . . . . . . Exploration Rate (%) 50 | 2 48 97 46 55 59 45 34 91 7 1 88 10 95 9 59 75 60 34 7 57 78 88 71 38 Regions Visited 24 Branch Regions 13 Pre-discovered Areas 5 | . . . . . 1 . . . . . . . . . . . 3 . . . 1 . . . Known Exits Taken 5 | . . . . . . . 1 . . 1 . . . 1 . . . 1 1 . . . . . Unknown Exits Taken 16 | 1 1 1 1 1 1 1 . 1 1 . . . . . 1 1 1 . . 1 1 1 1 . Scrap Searched 13 | . . 2 . . . 2 . . . . . . . . 3 1 . 1 . 1 1 . 2 . Spaces Dug 31 | . . 6 . . . . 1 . . . . . . . . . . . 2 . . . . 22 Terrain Destroyed 989 | . . 53 84 . . . 18 57 3 . . 21 . 6 72 22 . . 56 40 73 11 51 422 Melee . | . . . . . . . . . . . . . . . . . . . . . . . . . Projectile 115 | . . 6 3 . . . 1 . 1 . . 4 . 6 16 22 . . 8 . 1 2 20 25 AOE 874 | . . 47 81 . . . 17 57 2 . . 17 . . 56 . . . 48 40 72 9 31 397 Terrain Rammed . | . . . . . . . . . . . . . . . . . . . . . . . . . Walls Destroyed . | . . . . . . . . . . . . . . . . . . . . . . . . . Machines Disabled . | . . . . . . . . . . . . . . . . . . . . . . . . . Actions | -11 -10 -10 -9 -9 -9 -8 -8 -8 -7 -6 -6 -5 -5 -5 -5 -5 -5 -4 -4 -4 -4 -4 -3 -3 --------- Run | Scr Mat Min Mat Min Exi Min Mat Sto Fac Fac DSF Fac Was Fac Upp Upp Zhi Pro Fac Upp Upp War Pro Res Total 12071 | . 237 642 619 277 229 164 617 1165 524 38 234 402 461 357 445 594 231 193 183 487 873 1039 727 1333 Wait 525 | . 4 1 23 1 . . 36 123 6 . 2 55 . 33 12 7 . 2 . . . 17 175 28 Move 10406 | . 198 599 484 249 227 146 430 858 485 38 181 314 451 311 403 550 215 188 152 465 833 950 504 1175 Hop . | . . . . . . . . . . . . . . . . . . . . . . . . . Pick Up 88 | . 8 1 9 3 1 1 17 13 2 . 1 3 1 . 1 2 2 . . 4 1 11 . 7 Fast Attach 91 | . 3 . 12 3 . 1 13 23 3 . 1 5 3 1 2 2 6 . . . 3 3 1 6 Attach 49 | . 2 4 7 2 . . 7 5 1 . 1 1 . . 1 . 1 . 2 3 3 2 1 6 Detach 24 | . . . 2 1 . . 2 7 1 . . 2 . . 1 . 1 . 1 1 1 3 . 1 Swap 39 | . 1 5 8 1 . 1 8 9 1 . . . . . . . . . . . 1 1 1 2 Drop 143 | . 8 1 4 3 1 3 19 28 16 . 1 4 6 . 6 1 6 . 1 6 1 9 1 18 Fire 647 | . 12 31 70 14 . 12 82 96 7 . 39 18 . 12 19 32 . 3 27 8 30 14 37 84 Melee . | . . . . . . . . . . . . . . . . . . . . . . . . . Ram 2 | . . . . . . . . . . . . . . . . . . . . . . . . 2 Kick 5 | . 1 . . . . . . . . . . . . . . . . . . . . . . 4 Crush 3 | . . . . . . . 3 . . . . . . . . . . . . . . . . . Escape Stasis 13 | . . . . . . . . 3 2 . 8 . . . . . . . . . . . . . Rewire 36 | . . . . . . . . . . . . . . . . . . . . . . 29 7 . Trap . | . . . . . . . . . . . . . . . . . . . . . . . . . Miscellaneous . | . . . . . . . . . . . . . . . . . . . . . . . . . Route ------- -11/Scrapyard -10/Materials (discovered 2 exits: *Mat / [*Min]) -10/Mines (discovered 2 exits: *Mat x2) -9/Materials (discovered 2 exits: *Mat / *Min) -9/Mines (discovered 3 exits: *Mat x2 / *Exi) -9/Exiles -8/Mines -8/Materials (discovered 2 exits: *Sto x2) -8/Storage -7/Factory -6/Factory -6/DSF -5/Factory -5/Waste -5/Factory (discovered 4 exits: *Upp x2 / Ext x2) -5/Upper Caves -5/Upper Caves (discovered 2 exits: Fac / *Zhi) -5/Zhirov -4/Proximity Caves -4/Factory (discovered 2 exits: *Upp x2) -4/Upper Caves -4/Upper Caves (discovered 2 exits: *Res / *War) -4/Warlord -3/Proximity Caves -3/Research History --------- Turn | Location | Event 1 | -11/Scrapyard | Discovered new exit (range 0) 1 | -11/Scrapyard | Entered Materials 153 | -10/Materials | Discovered new exit (range 11) 290 | -10/Materials | Discovered new exit (range 12) 304 | -10/Materials | Build established: Mutant 318 | -10/Materials | Entered Mines 504 | -10/Mines | Learned Materials non-interactive machine intel 707 | -10/Mines | Discovered new exit (range 14) 821 | -10/Mines | Assembled infested the area 826 | -10/Mines | Assisted by a Guerilla fighting off Assembled 900 | -10/Mines | Lost 3 parts (2u1w) 923 | -10/Mines | Destroyed 9 combat bots 1187 | -10/Mines | Received a Rocket Launcher from a helpful Derelict 1243 | -10/Mines | Discovered new exit (range 5) 1266 | -10/Mines | Core integrity fell below 50% 1383 | -10/Mines | Entered Materials 1383 | -9/Materials | Evolved 2 slots: Propulsion x1, Utility x1 1384 | -9/Materials | Loaded intel: 39 non-interactive machine locations 1723 | -9/Materials | Lost 3 parts (2n1w) 2006 | -9/Materials | Discovered new exit (range 15) 2094 | -9/Materials | Build established: Scavenger-Mutant 2225 | -9/Materials | Lost 5 parts (1p1n2u1w) 2376 | -9/Materials | Discovered new exit (range 15) 2451 | -9/Materials | Entered Mines 2454 | -9/Mines | Core integrity fell below 50% 2456 | -9/Mines | Met a Derelict bent on vengeance 2459 | -9/Mines | Destroyed 7 combat bots 2541 | -9/Mines | Discovered new exit (range 16) 2691 | -9/Mines | Found the Drone Emporium 2699 | -9/Mines | Found Prototype Device 2699 | -9/Mines | Identified Decoy Drone Bay 2727 | -9/Mines | Build established: Mutant 2834 | -9/Mines | Discovered new exit (range 10) 2893 | -9/Mines | Deemed a non-threat by the Exiles lab entrance 2893 | -9/Mines | Discovered new exit (range 5) 2906 | -9/Mines | Entered Exiles 2945 | -9/Exiles | Met 8R-AWN 2974 | -9/Exiles | Met EX-HEX 3018 | -9/Exiles | Met EX-BIN 3042 | -9/Exiles | Aligned with FarCom system 3044 | -9/Exiles | Given EX-Vault access code 3086 | -9/Exiles | Opened EX-Vault 3099 | -9/Exiles | Build established: Scavenger-Mutant 3105 | -9/Exiles | Found Superbattery 3143 | -9/Exiles | Warned to stay clear of 0b10 Research branches 3194 | -9/Exiles | Met EX-DEC 3206 | -9/Exiles | Learned location of Zion (-6) 3250 | -9/Exiles | Discovered new exit (range 15) 3271 | -9/Exiles | Left Exiles lab with Superbattery 3271 | -9/Exiles | Entered Mines 3535 | -8/Mines | Discovered new exit (range 4) 3546 | -8/Mines | Entered Materials 3546 | -8/Materials | Evolved 2 slots: Utility x2 3936 | -8/Materials | Lost 3 parts (1n1u1w) 4339 | -8/Materials | Identified exit to Storage 4516 | -8/Materials | Lost 3 parts (1n2u) 4685 | -8/Materials | Entered Storage 4857 | -8/Storage | Repaired Hvy. EM Shotgun 4911 | -8/Storage | Repaired Corrupted Arm. Treads 5708 | -8/Storage | Discovered new exit (range 5) 6235 | -8/Storage | Met a pair of Derelict thieves 6408 | -8/Storage | Build established: Mutant 6752 | -8/Storage | Found Prototype Protection 6752 | -8/Storage | Identified Lgt. Regenerative Plating 6935 | -8/Storage | Assisted by bots powering up and referring to "LRC-V3" 7232 | -8/Storage | Build established: Commander-Mutant 7262 | -8/Storage | Entered Factory 7262 | -7/Factory | Accompanied by 6 allies 7262 | -7/Factory | Evolved 2 slots: Propulsion x1, Utility x1 7264 | -7/Factory | Found Scrap Engine 7691 | -7/Factory | Discovered new exit (range 15) 8227 | -7/Factory | Entered another Factory area 8227 | -6/Factory | Accompanied by 4 allies 8227 | -6/Factory | Evolved 2 slots: Power x1, Weapon x1 8317 | -6/Factory | Identified exit to DSF 8319 | -6/Factory | Entered DSF 8319 | -6/DSF | Accompanied by 4 allies 8362 | -6/DSF | Additional patrols routed to DSF 8706 | -6/DSF | System corruption reached 10% 8739 | -6/DSF | Lost 4 parts (3n1u) 8766 | -6/DSF | Sterilization system engaged 8786 | -6/DSF | Ambient heat levels rising (+10) 8801 | -6/DSF | Ambient heat levels rising (+10) 8807 | -6/DSF | Discovered new exit (range 15) 8816 | -6/DSF | Ambient heat levels rising (+10) 8831 | -6/DSF | Ambient heat levels rising (+10) 8846 | -6/DSF | Ambient heat levels rising (+10) 8848 | -6/DSF | Entered Factory 8848 | -5/Factory | Evolved 2 slots: Propulsion x1, Weapon x1 9203 | -5/Factory | Fabricated Wave Gun (x2) 9307 | -5/Factory | Fabricated Enh. Nova Cannon (x1) 9354 | -5/Factory | Destroyed 10 combat bots 9367 | -5/Factory | Sucked down chute 9367 | -5/Factory | Entered Waste 9368 | -5/Waste | Joined by Warlord forces that had cleared the area 9490 | -5/Waste | Found Adv. Powered Armor 9543 | -5/Waste | Discovered new exit (range 16) 9606 | -5/Waste | Build established: Skirmisher 9840 | -5/Waste | Entered Factory 9840 | -5/Factory | Accompanied by 20 allies 9947 | -5/Factory | Spotted B-75 Beast 9951 | -5/Factory | Allies destroyed B-75 Beast 9967 | -5/Factory | Build established: Construct 10126 | -5/Factory | Identified exit to Upper Caves 10126 | -5/Factory | Identified exit to Extension 10137 | -5/Factory | Garrison activated, responded to threat 10220 | -5/Factory | Entered Upper Caves 10302 | -5/Upper Caves | Attracted the attention of an 0b10 checkpoint 10447 | -5/Upper Caves | Learned 4 Factory zone layouts 10695 | -5/Upper Caves | Discovered new exit (range 8) 10701 | -5/Upper Caves | Entered another Upper Caves area 10801 | -5/Upper Caves | Encountered a Warlord checkpoint 10818 | -5/Upper Caves | Identified exit to Factory 11013 | -5/Upper Caves | Learned 12 Factory zone layouts 11040 | -5/Upper Caves | Found Alien Artifact 11046 | -5/Upper Caves | Discovered new exit (range 16) 11124 | -5/Upper Caves | Entered Zhirov 11124 | -5/Zhirov | Discovered new exit (range 3) 11134 | -5/Zhirov | Met Zhirov 11148 | -5/Zhirov | Found Alien Artifact 11148 | -5/Zhirov | Identified Integrated Dissipator 11148 | -5/Zhirov | Installed Integrated Dissipator, increased core heat dissipation (+20) 11166 | -5/Zhirov | Learned location of Quarantine (-3) 11166 | -5/Zhirov | Learned location of Testing (-2) 11166 | -5/Zhirov | Learned location of Command (-1) 11171 | -5/Zhirov | Zhirov requested help retrieving the SGEMP Prototype 11181 | -5/Zhirov | Found Alien Artifact 11256 | -5/Zhirov | Entered Proximity Caves 11293 | -4/Proximity Caves | Learned Research terminal intel 11312 | -4/Proximity Caves | Attracted the attention of an 0b10 checkpoint 11331 | -4/Proximity Caves | Learned Research security intel 11356 | -4/Proximity Caves | Discovered exit to Factory (range 16) 11369 | -4/Proximity Caves | Entered Factory 11369 | -4/Factory | Evolved 2 slots: Utility x2 11370 | -4/Factory | Identified exit to Upper Caves 11410 | -4/Factory | Spotted B-86 Titan 11506 | -4/Factory | Garrison activated, responded to threat 11538 | -4/Factory | Destroyed 17 combat bots 11546 | -4/Factory | Entered Upper Caves 11676 | -4/Upper Caves | Attracted the attention of an 0b10 checkpoint 11878 | -4/Upper Caves | Discovered new exit (range 16) 11904 | -4/Upper Caves | Entered another Upper Caves area 11928 | -4/Upper Caves | Encountered a Warlord checkpoint 12106 | -4/Upper Caves | Discovered new exit (range 9) 12452 | -4/Upper Caves | Attracted the attention of an 0b10 checkpoint 12510 | -4/Upper Caves | Discovered new exit (range 11) 12525 | -4/Upper Caves | Learned Research terminal intel 12581 | -4/Upper Caves | Entered Warlord 12756 | -4/Warlord | Found Prototype Special Weapon 12758 | -4/Warlord | Found Prototype Special Weapon 12760 | -4/Warlord | Found Prototype Special Weapon 12761 | -4/Warlord | Found Prototype Special Weapon 12763 | -4/Warlord | Found Prototype Special Weapon 12765 | -4/Warlord | Found Prototype Special Weapon 12951 | -4/Warlord | Warlord's base attacked by MAIN.C 12984 | -4/Warlord | Found Prototype Launcher 13042 | -4/Warlord | Build established: Commander-Construct 13093 | -4/Warlord | Met Warlord 13114 | -4/Warlord | Found Prototype Reactor 13117 | -4/Warlord | Found Prototype Device 13117 | -4/Warlord | Identified Exp. Phase Shifter 13122 | -4/Warlord | Found Prototype Device 13122 | -4/Warlord | Identified Exp. Focal Shield 13142 | -4/Warlord | Found Prototype Hackware 13194 | -4/Warlord | Warlord forces counterattacked 13288 | -4/Warlord | Discovered new exit (range 9) 13308 | -4/Warlord | Entered Proximity Caves 13308 | -3/Proximity Caves | Accompanied by 5 allies 13590 | -3/Proximity Caves | Attracted the attention of an 0b10 checkpoint 13628 | -3/Proximity Caves | Attracted the attention of an 0b10 outpost 13668 | -3/Proximity Caves | Destroyed 8 combat bots 13740 | -3/Proximity Caves | Discovered new exit (range 11) 13823 | -3/Proximity Caves | Entered Research 13823 | -3/Research | Accompanied by 6 allies 13823 | -3/Research | Evolved 2 slots: Power x1, Propulsion x1 13825 | -3/Research | Loaded intel: 22 terminal locations 14007 | -3/Research | Found Prototype Processor 14007 | -3/Research | Identified Exp. Signal Interpreter 14121 | -3/Research | P-80 Master assimilated allied Archangel 7c 14191 | -3/Research | Identified Vortex Chain Reactor 14311 | -3/Research | Lost 3 parts (2n1w) 14416 | -3/Research | P-80 Master assimilated allied Archangel 7b 14465 | -3/Research | Build established: Generator-Construct 14466 | -3/Research | System corruption reached 10% 14518 | -3/Research | Spotted B-86 Titan 14583 | -3/Research | Lost 8 parts (2p1n1u4w) 14602 | -3/Research | Identified RU-N14's Throwing Claymores v3 (x6) 14643 | -3/Research | System corruption reached 30% 14645 | -3/Research | Identified Vortex Catalyst Activator 14696 | -3/Research | Spotted B-86 Titan 14703 | -3/Research | Destroyed 7 combat bots 14726 | -3/Research | Core integrity fell below 50% 14815 | -3/Research | Build established: Mutant 14823 | -3/Research | First assault squad dispatched 14885 | -3/Research | Self-destructed Last Messages --------------- 14860_ Critical hit (Burn: +50). 14861_ G-67 Veteran destroyed. 14861_ Vortex Catalyst Activator implodes. 14861_ G-67 Veteran destroyed. 14863_ Flying ITA-Biometal Exoskeleton severed. 14863_ Flying ITA-Biometal Exoskeleton disintegrated. 14863_ Flying ITA-Biometal Exoskeleton core remains intact and functional. 14865_ System corrupted: Component data lost. 14873_ Flying ITA-Biometal Exoskeleton severed. 14873_ Flying ITA-Biometal Exoskeleton disintegrated. 14873_ Flying ITA-Biometal Exoskeleton core remains intact and functional. 14876_ Destroyed Flexi-carbon Leg. 14879_ Scrap Engine destroyed. 14879_ Destroyed Unknown Reactor. 14881_ System corrupted: Component data lost. 14881_ Multi-Antimatter Reactor destroyed. 14881_ Multi-Antimatter Reactor core remains intact and functional. 14882_ System corrupted: Directed Phase Construct/G jammed. 14883_ Multi-Antimatter Reactor destroyed. 14885_ Directed Phase Construct/G destroyed. Map ----- +----------------------------------------------------+ | ??????????????????????####+######+###### #### | | ?????????????????????? # | | ??????????????????????? # | | ????????????????? ???? + | | ????????????????? ?? # [ | | ??????????????????# ? """ #########+# | | ??????????????????# "" F"" #??# # | | ??????????????????# """""" #### # | | ??????????????????# """" # "" # | | ??????????????????# # "" ###### | | ??????????????????# + "" #????? | | ??????????????????# # S #????? | | ??????????????????######## ######## "" #????? | | ?????????????????????????# #??????# "" #????? | | ?????????????????????????# #??????# "" #????? | | ?????????????????????????# #??????# #????? | | ?????????????????????????# #??????# #????? | | ?????????????????????????# #??????# #????? | | ?????????????????????????# #??????# #????? | | ?????????????????????????# #??????# #????? | | ?????????????????????????# #??????########????? | | ???????????????????????### ##?????????????????? | | ???????????????????????# # ;###???????????????? | | ?????????????#+#########;; ; #???????????????? | | ????????????# ! ; #???????????????? | | ????????????# @ ; #??????????????? | | ????????????# l ; #??????????????? | | ????????????# ; #??????????????? | | ????????????# ;;; ;;;;???????????? | | ???????????# """ " %=g ?????????? | | ???????????? """ "" ??????????? | | ????????????????""" "" % ??????????? | | ????????????????""" """ ??????????? | | ?????????????????"" """ ##;;;;;;???????????? | | ?????????????????"" ?""" #? ???????????? | | ??????????????????" ???"" #?? ????????????? | | ???????????????????????? #??? ????????????? | | ???????????????????????? #??????????????????? | | ???????????????????????? #??????????????????? | | ???????????????????????? +??????????????????? | | ????????????????????????## ???????????????????? | | ?????????????????????????????????????????????????? | | ?????????????????????????????????????????????????? | | ?????????????????????????????????????????????????? | | ?????????????????????????????????????????????????? | | ?????????????????????????????????????????????????? | | ?????????????????????????????????????????????????? | | ?????????????????????????????????????????????????? | | ?????????????????????????????????????????????????? | | ?????????????????????????????????????????????????? | +----------------------------------------------------+ Best States ------------- Heat Dissipation 156 Energy Generation 74 Energy Capacity 865 Matter Stores 300 Matter Capacity 300 Sight Range 16 Terrain Scan Density 10 Jamming Range 14 Power Amplification 30 Corruption Block 13 Armor Coverage 750 Resistance: KI 20 Resistance: EM 15 Phase Shifting 20 Evasion (%) 69 Target Analysis 6 Armor Integrity Analysis 40 Recoil Reduction 5 Force Boost 20 Item Schematics ----------------- Huge Storage Unit | -10/Materials | Hacked Assault Drone Bay | -5/Zhirov | Free Exp. Heat Sink | -5/Zhirov | Free Exp. Optical Array | -5/Zhirov | Free Imp. Arc Thrower | -5/Zhirov | Free Robot Schematics ------------------ None Fabricated ------------ Wave Gun | x2 | -5/Factory | Preloaded Enh. Nova Cannon | x1 | -5/Factory | Preloaded Alien Tech Used ----------------- Integrated Dissipator Achievements -------------- None Challenges ------------ None Game ------ Seed ExperimentalAlertAxe Manual? 0 Play Time 01:57:22 Cumulative 408.6 hours Start 2022.09.05 @ 14:18:03 End 2022.09.05 @ 17:04:55 Sessions 3 Manual Loads 0 Difficulty Rogue Special Mode None Game No. 422 Rogue 422 Adventurer 0 Explorer 0 Win Type - Total 31 Types 18/3/3/1/2/1/3/0/0 Lore% 90 Gallery% 93 Achievement% 81 Wizard Run 0 Options --------- ASCII 0 Keyboard 0 Movement Arrows Keybinds 0 Fullscreen 2 Font 24/Smallcaps Map View 76x50 Tactical HUD 1 Map Filters NONE Filters NONE Steam 1 RUN: 6dd1d2cc-35ca-4128-ac77-76359d8d1b8d